Cogmind - Beta 10 @@@ ROGUE MODE // 2020.09.10 @ 20:47:21 Player: Torako Result: Destroyed by 8R-AWN with 8R-AWN's Boregun Performance ------------- Evolutions (1) 500 Regions Visited (5) 1000 Robots Destroyed (53) 265 Value Destroyed (1139) 1139 Prototype IDs (27) 540 Alien Tech Used (0) 0 Bonus (-475) -475 TOTAL SCORE: 2969 Bonus ------- Follower Combat Kills 64 Aligned with FarCom 300 Friendly Fire -839 Cogmind --------- Core Integrity 0/400 Matter 176/300 Energy 100/100 System Corruption 3% Temperature Cool (0) Movement Core (150) Ox2 Location -9/Exiles Parts ------- > --- POWER (1) -------- (None) > --- PROPULSION (2) --- (None) > --- UTILITY (3) ------ Melee Analysis Suite Core Shielding > --- WEAPON (3) ------- Light Cannon Mining Claw Katana > --- INVENTORY (4) ---- Latent Energy Streamer Peak State ------------ > --- POWER ------------ Cold Fusion Reactor > --- PROPULSION ------- Armored Treads Armored Treads > --- UTILITY ---------- Melee Analysis Suite Light Armor Plating Shield Generator > --- WEAPON ----------- Latent Energy Streamer Mining Claw Katana > --- INVENTORY -------- Light Treads Core Shielding Light Cannon Mining Claw [Rating: 32] Favorites ----------- Power Cooled Ion Engine Engine Cooled Ion Engine Power Core Light Nuclear Core Reactor Cold Fusion Reactor Propulsion Armored Treads Treads Armored Treads Wheel Compact Wheel Utility High-capacity Storage Unit Device Improved Heat Sink Storage High-capacity Storage Unit Processor Melee Analysis Suite Protection Light Armor Plating Weapon Improved EM Shotgun Energy Gun Improved EM Shotgun Energy Cannon Light EM Pulse Cannon Ballistic Gun Light Assault Rifle Ballistic Cannon Light Cannon Slashing Weapon Mining Claw Build | -11 -10 -10 -9 -9 -9 ------- Run | Scr Mat Min Mat Min Exi Slots Evolved 2 | . . . 2 . . Power . | . . . . . . Propulsion . | . . . . . . Utility 1 | . . . 1 . . Weapon 1 | . . . 1 . . Parts Attached 63 | 6 9 7 22 2 17 Power 8 | 1 1 2 2 . 2 Engine 6 | 1 1 1 2 . 1 Core 1 | . . 1 . . . Reactor 1 | . . . . . 1 Propulsion 12 | 2 2 1 4 1 2 Treads 10 | 1 1 1 4 1 2 Leg . | . . . . . . Wheel 2 | 1 1 . . . . Hover . | . . . . . . Flight . | . . . . . . Utility 17 | 1 4 1 3 1 7 Device 8 | . 2 . 2 1 3 Storage 4 | 1 2 1 . . . Processor 2 | . . . . . 2 Hackware . | . . . . . . Protection 3 | . . . 1 . 2 Artifact . | . . . . . . Weapon 26 | 2 2 3 13 . 6 Energy Gun 12 | 1 1 3 7 . . Energy Cannon 2 | . . . 1 . 1 Ballistic Gun 7 | 1 1 . 5 . . Ballistic Cannon 1 | . . . . . 1 Launcher . | . . . . . . Special Weapon . | . . . . . . Impact Weapon . | . . . . . . Slashing Weapon 4 | . . . . . 4 Piercing Weapon . | . . . . . . Special Melee Weapon . | . . . . . . Unidentified Prototypes 4 | . . . 2 . 2 Parts Lost 19 | . 3 2 8 . 6 Power 1 | . . . . . 1 Propulsion 5 | . 1 . 1 . 3 Utility 2 | . . . 1 . 1 Weapon 11 | . 2 2 6 . 1 Highest Loss Streak 6 | . 3 1 4 . 6 Average Slot Usage (%) 98 | . 99 100 95 100 94 Engine 8 | . 14 3 5 11 8 Core 2 | . . 10 5 . . Treads 18 | . 14 14 15 22 21 Wheel 4 | . 14 14 6 . . Device 9 | . 13 6 10 8 8 Storage 18 | . 14 21 22 22 7 Processor 1 | . . . . . 6 Protection 2 | . . . . 2 7 Energy Gun 19 | . 14 14 10 33 11 Ballistic Gun 6 | . 14 14 14 . . Slashing Weapon 3 | . . . . . 20 Naked Turns . | . . . . . . Heaviest Build 68 | 12 43 57 68 68 66 Greatest Support 40 | 10 26 22 40 40 40 Greatest Overweight (x) 4 | 1 4 3 4 1 1 Average Overweight (x) 1 | . 2 2 2 1 . Largest Inventory Capacity 18 | 6 12 18 18 18 18 Average Capacity 14 | 5 11 15 18 18 8 Most Carried 18 | 5 12 17 18 18 18 Average Carried 14 | 2 9 13 17 17 8 Final Capacity 18 | 6 12 18 18 18 4 Final Carried 18 | 5 12 17 18 18 1 Class Distribution -------------------- 45% | Gunner 41% | Mutant 9% | Tank 4% | Scavenger-Mutant Dominant Class ---------------- Mutant | -10/Materials Mutant | -10/Mines Gunner | -9/Materials Gunner | -9/Mines Mutant | -9/Exiles Resources | -11 -10 -10 -9 -9 -9 ----------- Run | Scr Mat Min Mat Min Exi Matter Collected 753 | 230 121 109 246 31 16 Remotely . | . . . . . . Salvage Created 1832 | . 423 152 788 372 97 Parts 125 | . 27 11 40 28 19 Haulers Intercepted 2 | . 1 . 1 . . Recyclers Shooed 1 | . . . 1 . . Parts Field Recycled . | . . . . . . Retrieved Matter . | . . . . . . Parts Self-Destructed . | . . . . . . Prevented . | . . . . . . Kills | -11 -10 -10 -9 -9 -9 ------- Run | Scr Mat Min Mat Min Exi Combat Hostiles Destroyed 42 | . 10 6 15 7 4 Melee 4 | . . . . . 4 Guns 33 | . 10 6 12 5 . Classes Destroyed 12 | . 4 . 2 5 1 Worker 2 | . . . . 2 . Tunneler 1 | . . . . 1 . Hauler 2 | . 1 . 1 . . Recycler 2 | . . . 2 . . Watcher 2 | . 1 . 1 . . Swarmer 15 | . 3 4 6 2 . Grunt 15 | . 7 2 5 1 . Brawler 1 | . . . . 1 . Duelist 1 | . . . . 1 . Sentry 6 | . . . 4 2 . Zionite 1 | . . . . 1 . Assembled 4 | . . . . . 4 Best Kill Streak 3 | . 3 3 3 2 3 Combat Bots Only 3 | . 3 3 3 2 3 Max Kills in Single Turn 2 | . 1 1 1 1 2 Gunslinging . | . . . . . . Exploded . | . . . . . . Melee 2 | . . . . . 2 Uniques/NPCs Destroyed 1 | . . . . . 1 EX-BIN (-9/Exiles) Combat | -11 -10 -10 -9 -9 -9 -------- Run | Scr Mat Min Mat Min Exi Damage Taken 3155 | 2 559 212 1023 316 1043 Core 508 | . 62 38 150 44 214 Absorbed by Shields 23 | . . . . . 23 Core Remaining (%) 80 | 100 . 60 . . . Volleys Fired 138 | . 43 19 60 15 1 Largest 3 | . 2 2 3 3 1 Hottest 150 | . 70 85 150 135 60 Shots Fired 291 | . 85 34 128 43 1 Gun 271 | . 85 34 109 43 . Cannon 20 | . . . 19 . 1 Launcher . | . . . . . . Special . | . . . . . . Kinetic 134 | . 43 19 72 . . Thermal 46 | . 32 12 2 . . Explosive . | . . . . . . Electromagnetic 111 | . 10 3 54 43 1 Robot Hit Streak 17 | . 12 13 13 17 . Robot Miss Streak 6 | . 4 3 6 4 1 Penetration Max . | . . . . . . Secondary Targets 5 | . 2 . 2 1 . Max Gunslinging Chain 1 | . 1 . 1 1 . Shots Hit Robots 247 | . 55 22 89 40 41 Core Hits 91 | . 24 10 30 16 11 Critical Hits 1 | . . . 1 . . Critical Kills . | . . . . . . Critical Parts Destroyed 1 | . . . 1 . . Melee Attacks 52 | . . . . . 52 Impact . | . . . . . . Slashing 52 | . . . . . 52 Piercing . | . . . . . . Sneak Attacks 1 | . . . . . 1 Combat Hostiles . | . . . . . . Follow-up Attacks 12 | . . . . . 12 Damage Inflicted 3932 | 4 604 221 1137 648 1318 Guns 2133 | . 604 221 817 491 . Cannons 313 | . . . 313 . . Explosions 105 | . . . . 105 . Melee 1318 | . . . . . 1318 Ramming 63 | 4 . . 7 52 . Kinetic 658 | . 196 92 370 . . Thermal 513 | . 305 91 12 105 . Explosive . | . . . . . . Electromagnetic 1380 | . 103 38 748 491 . Impact . | . . . . . . Slashing 1318 | . . . . . 1318 Piercing . | . . . . . . Highest Corruption 3 | . . . . . 3 Average Corruption 3 | . . . . . 3 Corruption Purged . | . . . . . . Effects 2 | . . . . . 2 Targeting Errors 2 | . . . . . 2 Overload Shots . | . . . . . . Overflow Damage 35 | . . . 18 16 1 Projectiles 18 | . . . 18 . . Explosions 16 | . . . . 16 . Melee 1 | . . . . . 1 Knockbacks 1 | . . . . 1 . Impact 1 | . . . . 1 . Kinetic . | . . . . . . Secondary . | . . . . . . Self-Inflicted Damage 34 | 2 . . . 32 . Shots 1 | . . . . 1 . Rammed 5 | 1 . . 1 3 . Targets Rammed 7 | 1 . . 1 5 . Kicked . | . . . . . . Crushed 2 | . . . . 2 . Highest Temperature 245 | . 245 216 96 207 10 Average Temperature 69 | . 77 86 35 56 7 Received Heat Transfer 501 | . 249 36 168 48 . Effects 1 | . . . . 1 . Interference 1 | . . . . 1 . Siege Activations . | . . . . . . Robots Corrupted 5 | . . . 3 2 . Combat Hostiles 5 | . . . 3 2 . Parts Fried 11 | . . . 6 5 . Impact Corruptions . | . . . . . . Robots Melted . | . . . . . . Combat Hostiles . | . . . . . . Parts Melted 2 | . . 2 . . . Heat Transferred 1335 | . 888 222 25 200 . Parts Sabotaged . | . . . . . . Parts Stolen . | . . . . . . Parts Stripped . | . . . . . . Power Chain Reactions 2 | . . . . 2 . Missiles Intercepted . | . . . . . . Latent Energy Used 200 | . . . . . 200 LE Corruption 3 | . . . . . 3 Alert | -11 -10 -10 -9 -9 -9 ------- Run | Scr Mat Min Mat Min Exi Peak Influence 276 | . 249 110 276 248 . Initial 95 | . . . . 95 . Average 70 | . 76 24 112 66 . Maximum Alert Level 1 | . 1 . 1 1 . Low Security (%) 95 | 100 96 100 84 98 . Level 1 4 | . 3 . 15 1 . Level 2 . | . . . . . . Level 3 . | . . . . . . Level 4 . | . . . . . . Level 5 . | . . . . . . High Security . | . . . . . . Max Security . | . . . . . . Squads Dispatched 5 | . 3 . 2 . . Investigation 2 | . 1 . 1 . . Extermination . | . . . . . . Reinforcement 3 | . 2 . 1 . . Assault . | . . . . . . Garrison . | . . . . . . Intercept . | . . . . . . Construction Impeded . | . . . . . . Haulers Reinforced . | . . . . . . Stealth | -11 -10 -10 -9 -9 -9 --------- Run | Scr Mat Min Mat Min Exi Distress Signals 1 | . . . 1 . . Communications Jammed . | . . . . . . Distress Signals . | . . . . . . Times Spotted 71 | . 15 6 31 11 8 Peak Tracking Total 9 | . 4 3 6 4 9 Tactical Retreats 4 | . . . 4 . . Traps | -11 -10 -10 -9 -9 -9 ------- Run | Scr Mat Min Mat Min Exi Traps Triggered 2 | . 1 . 1 . . Indirectly . | . . . . . . Trap Hack Attempts . | . . . . . . Triggered . | . . . . . . Disarmed . | . . . . . . Reprogrammed . | . . . . . . Reused . | . . . . . . Traps Extracted . | . . . . . . Installed . | . . . . . . Triggered . | . . . . . . Machines | -11 -10 -10 -9 -9 -9 ---------- Run | Scr Mat Min Mat Min Exi Machines Disabled 8 | . 1 . 2 . 5 Max in Single Turn 4 | . 1 . 1 . 4 Machines Sabotaged . | . . . . . . Garrisons Compromised . | . . . . . . Overloaded Fab Kills . | . . . . . . Fab Network Shutdowns . | . . . . . . Hacking | -11 -10 -10 -9 -9 -9 --------- Run | Scr Mat Min Mat Min Exi Machines Accessed 7 | . 4 1 1 . 1 Terminals 6 | . 4 1 1 . . Fabricators . | . . . . . . Repair Stations . | . . . . . . Recycling Units . | . . . . . . Scanalyzers . | . . . . . . Garrison Access . | . . . . . . Total Hacks 26 | . 16 7 2 . 1 Successful 15 | . 10 3 1 . 1 Failed 11 | . 6 4 1 . . Catastrophic 1 | . 1 . . . . Database Lockouts . | . . . . . . Manual 23 | . 13 7 2 . 1 Terminals 25 | . 16 7 2 . . Fabricators . | . . . . . . Repair Stations . | . . . . . . Recycling Units . | . . . . . . Scanalyzers . | . . . . . . Garrison Access . | . . . . . . Terminal Hacks 11 | . 6 3 1 . 1 Robot Analysis 4 | . 2 2 . . . Branch Access Points 1 | . 1 . . . . Terminal Index 2 | . 1 . 1 . . Unreport Threat 2 | . 1 1 . . . Patrol Status 1 | . 1 . . . . EX-Prototype ID Bank 1 | . . . . . 1 Fabricator Hacks . | . . . . . . Repair Station Hacks . | . . . . . . Recycling Unit Hacks . | . . . . . . Scanalyzer . | . . . . . . Garrison Access Hacks . | . . . . . . Unauthorized Hacks 4 | . 4 . . . . Terminals 4 | . 4 . . . . Assimilate 2 | . 2 . . . . Botnet 2 | . 2 . . . . Fabricators . | . . . . . . Repair Stations . | . . . . . . Recycling Units . | . . . . . . Scanalyzers . | . . . . . . Garrison Access . | . . . . . . Data Cores Recovered . | . . . . . . Used . | . . . . . . Hacking Detections 5 | . 3 1 1 . . Full Trace Events 1 | . 1 . . . . Feedback Events . | . . . . . . Feedback Blocked . | . . . . . . Robot Schematics Acquired . | . . . . . . Robots Built . | . . . . . . Matter . | . . . . . . Time . | . . . . . . Total Robot Build Rating . | . . . . . . Part Schematics Acquired . | . . . . . . Parts Built . | . . . . . . Matter . | . . . . . . Time . | . . . . . . Total Part Build Rating . | . . . . . . Parts Repaired . | . . . . . . Time . | . . . . . . Parts Recycled . | . . . . . . Recycled Matter . | . . . . . . Retrieved Matter . | . . . . . . Retrieved Components . | . . . . . . Parts Scanalyzed . | . . . . . . Part Schematics Acquired . | . . . . . . Parts Damaged . | . . . . . . Bothacking | -11 -10 -10 -9 -9 -9 ------------ Run | Scr Mat Min Mat Min Exi Used RIF Installer . | . . . . . . Robots Hacked . | . . . . . . Non-combat . | . . . . . . Combat . | . . . . . . Robot Hacks Applied . | . . . . . . Relay Couplers Released . | . . . . . . Robots Rewired . | . . . . . . Allies Hacked . | . . . . . . Hacks Repelled . | . . . . . . Allies | -11 -10 -10 -9 -9 -9 -------- Run | Scr Mat Min Mat Min Exi Total Allies 5 | . . . . 5 . Largest Group 3 | . . . . 3 3 Highest-Rated Group 54 | . . . . 54 40 Highest-Rated Ally 31 | . . . . 31 16 Total Orders . | . . . . . . Ally Attacks 30 | . . . . 13 17 Total Damage 324 | . . . . 208 116 Kills 7 | . . . . 4 3 Allies Corrupted . | . . . . . . Allies Melted . | . . . . . . Intel | -11 -10 -10 -9 -9 -9 ------- Run | Scr Mat Min Mat Min Exi Robot Analysis Total 4 | . 2 2 . . . Derelict Logs Recovered 4 | . . 2 . 2 . Drone Launches . | . . . . . . Drone Recoveries . | . . . . . . Exploration | -11 -10 -10 -9 -9 -9 ------------- Run | Scr Mat Min Mat Min Exi Turns Passed 3864 | 58 527 494 697 1408 680 Spaces Moved 2013 | 41 319 347 309 708 289 Core 3 | 3 . . . . . Treads 1111 | . 18 . 96 708 289 Legs . | . . . . . . Wheels 899 | 38 301 347 213 . . Hover . | . . . . . . Flight . | . . . . . . Fastest Speed 50 | 50 90 110 130 185 170 Average Speed 154 | 82 116 120 149 186 176 Slowest Speed 230 | 90 180 130 230 190 185 Overloaded Moves . | . . . . . . Propulsion Burnouts . | . . . . . . Robots Hopped . | . . . . . . Cave-ins Triggered . | . . . . . . Exploration Rate (%) 47 | 3 56 58 31 93 42 Regions Visited 5 Branch Regions 3 Pre-discovered Areas 1 | . . . . 1 . Known Exits Taken 1 | . 1 . . . . Unknown Exits Taken 4 | 1 . 1 1 1 . Scrap Searched 3 | . . 2 . 1 . Spaces Dug 1 | . . . . . 1 Terrain Destroyed 85 | . . . . 4 81 Melee 1 | . . . . . 1 Projectile . | . . . . . . AOE 84 | . . . . 4 80 Terrain Rammed . | . . . . . . Walls Destroyed . | . . . . . . Machines Disabled . | . . . . . . Actions | -11 -10 -10 -9 -9 -9 --------- Run | Scr Mat Min Mat Min Exi Total 2476 | 62 402 394 460 763 395 Wait 101 | 9 3 12 26 21 30 Move 2008 | 40 318 346 308 707 289 Hop . | . . . . . . Pick Up 62 | 6 16 6 22 6 6 Fast Attach 27 | 5 4 2 6 1 9 Attach 19 | 1 3 1 9 . 5 Detach 4 | . 2 . 1 . 1 Swap 17 | . 2 4 7 1 3 Drop 56 | . 11 4 20 7 14 Fire 138 | . 43 19 60 15 1 Melee 37 | . . . . . 37 Ram 1 | 1 . . . . . Kick . | . . . . . . Crush 6 | . . . 1 5 . Escape Stasis . | . . . . . . Rewire . | . . . . . . Trap . | . . . . . . Miscellaneous . | . . . . . . Route ------- -11/Scrapyard -10/Materials (discovered 3 exits: *Mat x2 / *Min) -10/Mines -9/Materials -9/Mines (discovered 3 exits: [*Mat x2] / *Exi) -9/Exiles (discovered 1 exit: [*Min]) History --------- Turn | Location | Event 5 | -11/Scrapyard | Discovered new exit (range 15) 59 | -11/Scrapyard | Entered Materials 287 | -10/Materials | Discovered new exit (range 4) 320 | -10/Materials | Build established: Mutant 419 | -10/Materials | Identified exit to Mines 496 | -10/Materials | Lost 3 parts (1n2w) 509 | -10/Materials | Discovered new exit (range 15) 586 | -10/Materials | Entered Mines 590 | -10/Mines | Met a Derelict bent on vengeance 726 | -10/Mines | Discovered new exit (range 6) 740 | -10/Mines | Learned Materials non-interactive machine intel 1080 | -10/Mines | Entered Materials 1080 | -9/Materials | Evolved 2 slots: Utility x1, Weapon x1 1081 | -9/Materials | Loaded intel: 39 non-interactive machine locations 1356 | -9/Materials | Discovered new exit (range 11) 1529 | -9/Materials | Lost 4 parts (1n3w) 1777 | -9/Materials | Entered Mines 1885 | -9/Mines | Learned location of Storage (-7) 1908 | -9/Mines | Assembled infested the area 2042 | -9/Mines | Build established: Tank 2404 | -9/Mines | Build established: Gunner 2734 | -9/Mines | Discovered new exit (range 3) 2771 | -9/Mines | Assisted by bots powering up and referring to "LRC-V3" 3076 | -9/Mines | Learned 2 Materials zone layouts 3081 | -9/Mines | Discovered new exit (range 8) 3176 | -9/Mines | Discovered new exit (range 5) 3185 | -9/Mines | Entered Exiles 3185 | -9/Exiles | Accompanied by 3 allies 3215 | -9/Exiles | Discovered new exit (range 15) 3235 | -9/Exiles | Met 8R-AWN 3261 | -9/Exiles | Met EX-HEX 3321 | -9/Exiles | Met EX-BIN 3348 | -9/Exiles | Aligned with FarCom system 3350 | -9/Exiles | Given EX-Vault access code 3393 | -9/Exiles | Opened EX-Vault 3568 | -9/Exiles | Found Latent Energy Streamer 3613 | -9/Exiles | Warned to stay clear of 0b10 Research branches 3695 | -9/Exiles | Destroyed EX-BIN 3696 | -9/Exiles | Attacked by the Exiles 3704 | -9/Exiles | Found Prototype Device 3704 | -9/Exiles | Identified System Purifier 3718 | -9/Exiles | Core integrity fell below 50% 3832 | -9/Exiles | Core integrity fell below 20% 3865 | -9/Exiles | Destroyed by 8R-AWN with 8R-AWN's Boregun Last Messages --------------- Penetrated by HV Slug. HV Slug penetrates Wall. Katana follow-up attack on 8R-AWN. Mining Claw follow-up attack on 8R-AWN. System corrupted: Mining Claw targeting data glitched. Penetrated by HV Slug. Katana follow-up attack on 8R-AWN. HV Slug penetrates HEX's Workstation. Penetrated by HV Slug. HV Slug penetrates Wall. Penetrated by HV Slug. Mining Claw destroyed. Mining Claw follow-up attack on 8R-AWN. Penetrated by HV Slug. Critical hit. Lgt. Treads destroyed. HV Slug penetrates Wall. Penetrated by HV Slug. Mining Claw follow-up attack on 8R-AWN. Penetrated by HV Slug. Map ----- +----------------------------------------------------+ | | | | | | | | | | | | | | | | | | | | | | | | | ????????????????#########????????????????????????? | | ????????????????# [ ]#????????????????????????? | | ????????????????#== [ #????????????????????????? | | ????????????????# #????????????????????????? | | ????????????????# != X#????????????????????????? | | ????????????????## [ ##????????????????????????? | | ????????????????#X !!#?????????????????????????? | | ????????????????## ** [#?????????????????????????? | | ?????????????????# [[! #?????????????????????????? | | ?????????????????# * #########?????????????????? | | ?????????????????# ##""""" #?????????????????? | | ?????????????????# ## ""#?????????????????? | | ?????????????????# g X #?????????????????? | | ?????????????????# ##@ "#?????????????????? | | ???????????####??# ## #?????????????????? | | ???????????"""""?# ###;;;###?????????????????? | | ??????????"""" ## #?? # #??????????????????? | | ?????????#""X" #??### #??????????????????? | | ?????????#" #?????# #?????????????????? | | ?????????#" ## #??????# #????????????????? | | ?????????#""""""?# #?#######;#???????????????? | | ??????????#"###??# %%#?#""""""";#??????????????? | | ?????????????????# #?#"""""""# ??????????????? | | ?????????????????# !###"""""""#? ?????????????? | | ????????????????## "##"" """"#?? ????????????? | | ????????????????#" ==!""""#???????????????? | | ????????????????#" %!=!"""#???????????????? | | ????????????????#" [!!!!"""#???????????????? | | ????????????????#" !!%!%"""#???????????????? | | ????????????????#" *!!!"""#???????????????? | | ????????????????#" [!!!"""#???????????????? | | ????????????????## =!!"" ""??????????????? | | ?????????????????# %"""##??????????????? | | ?????????????????#" "X" """"???????????????? | | ?????????????????#" % """ #???????????????? | | ?????????????????#" """""""""#???????????????? | | ????????????????## %###########???????????????? | | ???????????????## #?????????????????????????? | +----------------------------------------------------+ Best States ------------- Heat Dissipation 50 Energy Generation 17 Energy Capacity 280 Matter Stores 300 Matter Capacity 300 Sight Range 16 Terrain Scan Density 10 Additional Mass Support 6 Armor Coverage 150 Core Shielding 20 Evasion (%) 44 Melee Accuracy 5 Recoil Reduction 2 Item Schematics ----------------- None Robot Schematics ------------------ None Fabricated ------------ Nothing Alien Tech Used ----------------- None Achievements -------------- None Challenges ------------ None Game ------ Seed NullContainmentWarhead Manual? 0 Play Time 00:29:04 Cumulative 221.6 hours Start 2020.09.10 @ 20:22:30 End 2020.09.10 @ 20:47:21 Sessions 1 Manual Loads 0 Difficulty Rogue Special Mode None Game No. 242 Rogue 242 Adventurer 0 Explorer 0 Win Type - Total 11 Types 8/0/2/1/0/0/0/0/0 Lore% 75 Gallery% 86 Achievement% 66 Wizard Run 0 Options --------- ASCII 0 Keyboard 1 Movement Numpad Keybinds 0 Fullscreen 1 Font 20/SmallcapsGlow Map View 66x50 Tactical HUD 1 Map Filters NONE Filters NONE Steam 1 RUN: 047da512-663b-40ff-8c3c-d4e20aa13823